bitfinex-derivatives/quotes_ETHF0:USTF0_20250810
["timestamp","ask_amount","ask_price","bid_price","bid_amount"]
[1754822268594,0.4584,4200.2,4200.1,0.47614]
[1754822268792,1.5557,4200.2,4200.1,0.47614]
[1754822269098,1.2991,4200.6,4200.5,0.4761]
[1754822269291,0.6281,4200.6,4200.4,0.47611]
[1754822269491,1.5557,4200.5,4200.1,3.9678093]
[1754822269693,1.5557,4200.2,4200.1,3.0517093]
[1754822269887,0.3995,4200.1,4199.7,3.68399]
[1754822270086,1.5557,4199.8,4199.7,3.2078]
[1754822270591,1.5557,4199.8,4199.7,4.4948]
[1754822270799,0.6281,4200.1,4200.0,0.47615]
[1754822270989,1.5557,4200.3,4200.0,0.47615]
[1754822271293,4.18521642,4200.5,4200.0,0.47615]
[1754822271294,1.5557,4200.1,4200.0,4.04878487]
[1754822271495,1.5557,4200.1,4200.0,4.60498487]
[1754822271796,1.5557,4200.1,4200.0,4.87418487]
[1754822272291,1.5557,4200.1,4200.0,5.13898487]
[1754822272493,1.5557,4200.6,4200.5,0.4761]
[1754822272688,1.5557,4200.6,4200.5,1.7631]
[1754822272894,3.2078,4201.0,4200.8,1.10466]
[1754822272895,1.5557,4200.9,4200.8,1.10466]
[1754822273198,1.5557,4200.9,4200.8,0.3594]
[1754822273399,1.5557,4200.9,4200.8,0.1741]
[1754822273602,1.5557,4200.9,4200.7,0.47607]
[1754822273797,1.5557,4200.8,4200.7,0.47607]
[1754822273993,1.5557,4200.8,4200.7,1.03227]
[1754822274497,0.8847,4200.6,4200.5,1.3086]
[1754822274698,1.5557,4200.6,4200.5,1.4939]
[1754822275702,1.5557,4200.6,4200.5,1.7631]
[1754822276099,1.5557,4200.6,4200.5,1.4939]
[1754822277399,1.5557,4200.6,4200.5,0.8325]
[1754822277602,1.5557,4200.6,4200.5,0.4504]
[1754822278304,1.5557,4200.6,4200.3,0.47612]
[1754822278502,0.6281,4200.6,4200.5,0.4761]
[1754822278897,0.6281,4200.6,4200.5,0.7524]
[1754822279098,1.5557,4200.6,4200.5,1.3086]
[1754822279399,0.8996,4201.4,4201.3,0.6357]
[1754822279593,1.2991,4201.4,4201.3,1.287]
[1754822280002,1.5557,4201.2,4201.1,1.49383]
[1754822280201,1.5557,4201.2,4201.1,1.76303]
[1754822280393,0.6108,4201.2,4201.1,2.02783]
[1754822280595,3.2078,4201.5,4201.4,2.0278]
[1754822280797,0.8823,4201.9,4201.8,1.287]
[1754822281107,4.364,4202.2,4202.1,1.76292]
[1754822281403,4.364,4202.2,4202.1,4.83982324]
[1754822281707,3.2078,4202.2,4202.1,5.10462324]
[1754822284905,0.2566,4202.6,4202.5,2.02767]
[1754822285107,0.8996,4202.9,4202.8,1.11154]
[1754822285405,1.87701642,4202.9,4202.8,1.77344]
[1754822285801,2.14461642,4202.9,4202.8,2.04084]
[1754822286002,2.14461642,4202.9,4202.8,5.07491376]
[1754822286204,3.2078,4203.0,4202.8,4.14561376]
[1754822286405,3.2078,4203.0,4202.9,1.5532]
[1754822286797,3.2078,4203.0,4202.9,4.67811733]
[1754822288203,0.271,4203.4,4203.3,0.91958]
[1754822288406,3.7313,4203.5,4203.4,1.5532]
[1754822288798,3.7313,4203.5,4203.4,4.62199161]
[1754822292509,5.32601642,4203.5,4203.2,0.47579]
[1754822292709,1.265,4203.3,4203.2,0.47579]
[1754822292909,1.536,4203.3,4203.2,0.47579]
[1754822293304,0.633,4203.3,4203.2,1.09969]
[1754822293506,3.7313,4203.5,4203.3,1.5532]
[1754822293712,4.3486,4203.5,4203.4,1.2858]
[1754822293909,4.9997,4203.5,4203.4,4.44914205]
[1754822294210,4.9997,4203.5,4203.4,3.16334205]
[1754822294211,6.24471642,4203.5,4203.4,3.16334205]
[1754822294406,1.536,4203.3,4203.2,0.47579]
[1754822296123,8.51341642,4203.3,4203.2,0.47579]
[1754822297507,2.51341642,4203.3,4203.2,0.47579]
[1754822298008,2.51341642,4203.3,4203.2,1.31419]
[1754822298614,2.51341642,4203.3,4203.2,0.47579]
[1754822301413,2.51341642,4203.3,4203.2,0.73769]
[1754822302107,2.51341642,4203.3,4203.2,0.91959]
[1754822302809,2.51341642,4203.3,4203.2,1.49429]
[1754822303015,2.51341642,4203.3,4203.2,2.02899]
[1754822303312,2.51341642,4203.3,4203.2,1.76159]
[1754822303619,2.13331642,4203.3,4203.2,8.39912849]
[1754822304113,1.89487365,4203.3,4203.2,8.39912849]
[1754822304519,0.03255723,4203.3,4203.2,8.39912849]
[1754822306411,1.62727365,4203.3,4202.7,3.2078]
[1754822306618,1.536,4202.8,4202.7,1.76165]
[1754822307121,1.536,4202.8,4202.7,8.12127337]
[1754822307314,1.56855723,4202.8,4202.7,8.38867337]
[1754822307508,1.56855723,4202.8,4202.7,5.18087337]
[1754822308216,1.56855723,4202.8,4202.7,4.91347337]
[1754822308915,1.56855723,4202.8,4202.7,8.12127337]
[1754822309715,1.56855723,4202.8,4202.7,8.38867337]
[1754822311018,1.56855723,4202.8,4202.7,0.47585]
[1754822311214,1.56855723,4202.8,4202.7,1.49435]
[1754822311421,1.56855723,4202.8,4202.7,4.96945]
[1754822311624,1.56855723,4202.8,4202.7,5.23685]
[1754822312218,0.66455723,4202.8,4202.7,5.23685]
[1754822312517,0.66455723,4202.8,4202.7,8.35310152]
[1754822312518,0.03255723,4202.8,4202.7,8.35310152]
[1754822315026,1.6794,4203.5,4203.4,2.02897]
[1754822315323,3.05281642,4203.5,4203.4,2.02897]
[1754822315522,3.05281642,4203.5,4203.4,1.76157]
[1754822316024,3.05281642,4203.5,4203.4,2.03027]
[1754822316526,2.11821642,4203.5,4203.2,3.2078]
[1754822316726,4.7546,4203.4,4203.3,0.47578]
[1754822316927,4.90912823,4203.4,4203.3,0.47578]
[1754822319528,4.90912823,4203.4,4203.3,0.73858]
[1754822319720,5.88654465,4203.4,4203.3,2.01018]
[1754822319921,5.06144465,4203.4,4203.3,2.01018]
[1754822320117,3.80352823,4203.4,4203.3,2.01018]
[1754822320317,4.7546,4203.4,4203.3,2.01018]
[1754822320522,4.90912823,4203.4,4203.3,1.74148]
[1754822321230,4.51312823,4203.4,4203.3,5.17399992]
[1754822321525,1.70132823,4203.4,4203.3,5.17399992]
[1754822321722,1.5468,4203.4,4203.3,5.17399992]
[1754822321924,1.1508,4203.4,4203.3,5.17399992]
[1754822322226,0.6153,4203.4,4203.3,5.17399992]
[1754822322633,0.5235,4203.5,4203.4,1.5344]
[1754822322928,0.5235,4203.5,4203.4,4.62854667]
[1754822324130,0.5235,4203.5,4203.4,27.56654667]
[1754822328022,0.7823,4203.5,4203.4,27.56654667]
[1754822328222,1.3938,4203.5,4203.4,27.56654667]
[1754822329027,0.5235,4203.5,4203.4,27.56654667]
[1754822329430,1e-05,4203.5,4203.4,27.56654667]
[1754822329630,1e-05,4203.5,4203.4,27.75898615]
[1754822329828,1e-05,4203.5,4203.4,33.75898615]
[1754822330022,0.8958,4204.5,4204.4,0.6127]
[1754822330227,1.5468,4204.5,4204.4,1.5344]
[1754822330430,1.5468,4204.5,4204.4,1.2657]
[1754822331433,1.5468,4204.5,4204.4,1.0031]
[1754822331830,1.1177,4204.5,4204.4,1.0031]
[1754822332133,1.5468,4204.5,4204.4,1.2657]
[1754822332733,1.5468,4204.5,4204.4,1.0031]
[1754822333234,1.5468,4204.5,4204.4,0.8227]
[1754822334536,4.7546,4204.7,4204.6,0.47563]
[1754822334832,4.7546,4204.7,4204.6,1.74133]
[1754822335028,5.73201642,4204.7,4204.6,4.81684775]
[1754822335336,5.73201642,4204.7,4204.6,5.08554775]
[1754822335641,5.73201642,4204.7,4204.6,28.01554775]
[1754822336725,3.2078,4204.7,4204.6,28.01554775]
[1754822336931,1.5468,4205.0,4204.9,1.7413]
[1754822337131,2.52421642,4205.0,4204.9,1.7413]
[1754822337727,2.12821642,4205.0,4204.9,5.09487168]
[1754822338330,1.1508,4205.0,4204.9,5.09487168]
[1754822338627,4.7546,4205.5,4205.4,1.74124]
[1754822338827,5.73201642,4205.5,4205.4,24.66824]
[1754822339035,5.73201642,4205.5,4205.4,27.80808477]
[1754822339334,4.3586,4205.5,4205.4,28.07678477]
[1754822339635,1.1508,4205.5,4205.4,28.07678477]
[1754822339844,0.8251,4205.9,4205.8,1.0882]
[1754822340029,2.26541642,4205.9,4205.8,24.9359]
[1754822340225,2.26541642,4205.9,4205.8,24.6733]
[1754822340633,2.26541642,4205.9,4205.8,24.1025]
[1754822341237,2.26541642,4205.9,4205.8,27.25941248]
[1754822341433,2.26541642,4205.9,4205.8,27.83021248]
[1754822341736,2.26541642,4205.9,4205.8,28.09281248]
[1754822342133,1.5468,4206.3,4206.2,2.00985]
[1754822342333,2.26541642,4206.3,4206.2,2.00985]
[1754822342735,2.26541642,4206.3,4206.2,5.07304438]
[1754822343039,0.7096,4206.4,4206.3,1.5344]
[1754822343435,0.7096,4206.4,4206.3,4.59759438]
[1754822343937,0.7096,4206.4,4206.3,5.07303438]
[1754822344135,0.97741642,4206.6,4206.3,4.80433438]
[1754822344340,2.26541642,4206.6,4206.5,1.74722]
[1754822345039,2.26541642,4206.6,4206.5,2.00982]
[1754822345542,2.26541642,4206.6,4206.5,5.12785367]
[1754822346435,2.26541642,4206.6,4206.5,4.86525367]
[1754822346939,2.26541642,4206.6,4206.5,5.12225367]
[1754822347337,2.53711642,4206.6,4206.5,3.11803367]
[1754822347534,0.2681,4206.6,4206.5,0.47542]
[1754822347735,0.2681,4206.6,4206.5,1.59712]
[1754822347736,1.5916,4206.6,4206.5,1.59712]
[1754822347935,35.51456901,4208.6,4206.5,1.59712]
[1754822347936,3.2078,4208.0,4207.4,0.47532]
[1754822348132,3.4759,4208.0,4207.9,0.47526]
[1754822348331,3.6547,4208.0,4207.9,24.95396]
[1754822348630,4.5277,4208.0,4207.9,24.95396]
[1754822349034,4.7994,4208.5,4208.4,0.93271]
[1754822349432,4.5277,4208.5,4208.4,1.78391]
[1754822349636,4.7994,4208.5,4208.4,1.78391]
[1754822349942,4.7994,4208.5,4208.4,0.4575]
[1754822350143,4.7994,4208.5,4208.4,0.2713]
[1754822350340,0.6373,4208.5,4208.4,0.2713]
[1754822350638,0.6373,4208.5,4208.4,1.1217]
[1754822350834,0.6373,4208.5,4208.4,4.39030202]
[1754822351034,1.3199,4208.5,4208.4,4.39030202]
[1754822351237,1.5916,4208.5,4208.4,3.79540202]
[1754822352032,1.5916,4208.5,4208.4,4.39030202]
[1754822352237,1.3199,4208.5,4208.4,4.64730202]
[1754822354340,0.9054,4208.5,4208.4,4.64730202]
[1754822354737,0.4145,4208.8,4208.5,0.47519]
[1754822354942,1.3199,4208.8,4208.7,1.5657]
[1754822355642,1.5916,4209.6,4209.5,0.74638]
[1754822355842,0.7194,4209.6,4209.5,24.93978]
[1754822356144,4.5277,4210.1,4210.0,2.04072]
[1754822356537,38.70962889,4213.2,4210.0,2.04072]
[1754822356538,0.2681,4210.5,4210.0,1.3087]
[1754822356743,1.5916,4210.5,4210.4,0.93248]
[1754822356944,1.5916,4210.5,4210.4,1.18878]
[1754822357338,0.82309,4210.5,4210.4,4.82316214]
[1754822357542,3.2078,4210.6,4210.4,5.08016214]
[1754822357741,0.7636,4210.9,4210.8,0.74623]
[1754822358350,0.4919,4210.9,4210.7,0.35914]
[1754822359543,0.4919,4210.9,4210.7,0.63044]
[1754822360151,0.4919,4210.9,4210.7,0.35914]
[1754822360340,3.2078,4211.2,4211.0,0.2713]
[1754822360547,3.2078,4211.2,4211.1,0.2713]
[1754822361151,3.2078,4211.2,4211.1,1.1578]
[1754822361345,3.2078,4211.2,4210.9,0.47492]
[1754822362247,10.39504,4211.2,4209.9,3.2078]
[1754822362447,1.1,4211.5,4209.6,0.47507]
[1754822362448,3.68282,4210.1,4209.6,0.47507]
[1754822362652,3.2078,4210.1,4209.6,0.47507]
[1754822363042,3.2078,4210.1,4209.8,0.47504]
[1754822363751,0.47503,4210.0,4209.5,0.74638]
[1754822363955,3.2078,4209.6,4209.5,0.74638]
[1754822365752,3.2078,4209.6,4209.5,2.04078]
[1754822366657,3.2078,4210.1,4209.7,1.0374]
[1754822366855,3.2078,4210.1,4209.8,0.257]
[1754822367052,3.2078,4210.1,4209.8,0.4432]
[1754822367252,3.2078,4210.1,4209.9,0.47504]
[1754822367958,0.47503,4210.0,4209.6,0.47507]
[1754822368262,0.47504,4209.9,4209.5,0.47508]
[1754822368466,3.2078,4209.6,4209.5,0.47508]
[1754822368653,3.2078,4209.6,4209.5,0.74638]
[1754822368958,3.2078,4209.6,4209.5,0.2713]
[1754822369351,3.2078,4209.6,4209.4,0.47509]
[1754822369852,0.47508,4209.5,4209.2,0.47511]
[1754822370059,9.2078,4209.6,4208.6,0.9008]
[1754822370251,3.2078,4208.8,4208.7,0.74647]
[1754822370457,3.2078,4208.8,4208.1,3.2078]
[1754822370458,3.68297,4208.8,4208.4,0.47521]
[1754822370658,3.68297,4208.8,4208.5,0.2713]
[1754822370852,0.4752,4208.5,4208.1,0.47524]
[1754822371052,0.4752,4208.5,4207.7,23.1503]
[1754822371259,0.4752,4208.5,4207.7,0.7138]
[1754822371459,0.4752,4208.5,4208.2,0.47522]
[1754822371757,3.2078,4208.8,4208.2,0.47522]
[1754822371758,0.47519,4208.6,4208.2,0.47522]
[1754822372056,0.47519,4208.6,4208.2,0.74652]
[1754822372459,0.47518,4208.7,4208.2,0.74652]
[1754822372660,3.2078,4208.8,4208.6,0.47518]
[1754822372959,3.2078,4208.8,4208.7,1.5657]
[1754822373153,3.2078,4208.8,4208.7,1.1578]
[1754822373350,3.2078,4208.8,4208.7,1.5657]
[1754822373752,3.2078,4209.4,4209.3,0.4751]
[1754822373955,3.2078,4209.4,4209.3,0.7145]
[1754822374154,3.2078,4209.4,4209.3,1.1578]
[1754822374359,3.2078,4209.4,4209.3,1.5657]
[1754822376260,3.2078,4210.0,4209.9,2.01034]
[1754822377163,3.2078,4210.5,4209.9,4.62629835]
[1754822377357,3.2078,4210.5,4210.4,1.53115385]
[1754822377557,3.2078,4210.5,4210.4,2.00613385]
[1754822377969,3.2078,4210.5,4210.4,2.01028]
[1754822379058,3.2078,4210.5,4210.4,1.5353]
[1754822380156,4.0469,4210.5,4210.4,1.5353]
[1754822380757,3.2078,4210.5,4210.4,1.5353]
[1754822382056,3.629,4211.1,4211.0,1.5353]
[1754822383275,4.3081,4211.1,4211.0,1.1564]
[1754822383768,0.8444,4210.4,4210.3,1.1564]
[1754822384070,1.1003,4210.4,4210.3,1.63139]
[1754822384267,1.1003,4210.4,4210.3,0.7107]
[1754822384570,0.4265,4210.2,4210.1,1.01431]
[1754822384775,1.1003,4210.2,4210.1,1.01431]
[1754822385070,1.1003,4210.2,4210.1,0.5393]
[1754822385770,0.8477,4210.2,4210.1,0.7107]
[1754822385979,3.6376,4210.6,4210.5,0.3453]
[1754822386271,3.8902,4210.6,4210.5,0.1714]
[1754822386469,0.4265,4210.4,4210.3,0.5393]
[1754822386666,0.47499,4210.3,4209.4,3.2078]
[1754822386866,0.8391,4209.9,4209.8,2.01035]
[1754822387263,0.15738365,4210.5,4210.4,1.2561]
[1754822387471,0.4179,4210.5,4210.4,1.5353]
[1754822387672,3.2078,4210.6,4210.4,1.5353]
[1754822387965,3.2078,4210.6,4210.5,1.5353]
[1754822388361,0.4179,4210.9,4210.5,0.6171]
[1754822388566,0.8391,4210.9,4210.8,0.6171]
[1754822388771,0.8391,4210.9,4210.8,1.5353]
[1754822389374,0.1684,4210.9,4210.8,1.5353]
[1754822389778,3.2078,4211.2,4211.0,1.1564]
[1754822390078,3.2078,4211.2,4211.1,1.5353]
[1754822391376,4.0522,4211.2,4211.1,1.5353]
[1754822391567,4.3081,4211.2,4211.1,0.7107]
[1754822391768,4.3081,4211.2,4211.1,0.5393]
[1754822391974,5.05020382,4211.2,4211.1,0.5393]
[1754822392178,0.8391,4211.1,4211.0,0.4749]
[1754822392475,3.2078,4211.2,4211.0,1.6313]
[1754822392677,3.2078,4211.2,4211.1,1.5353]
[1754822393970,0.15737433,4211.4,4211.3,0.1714]
[1754822394176,1.1,4211.5,4211.4,1.5353]
[1754822398182,1.1,4211.5,4211.4,4.59181666]
[1754822400284,0.4265,4211.3,4211.2,0.47489]
[1754822400588,1.1003,4211.3,4211.2,0.47489]
[1754822400783,0.4265,4210.3,4210.2,0.475]
[1754822401176,0.4212,4210.3,4210.2,2.0103]
[1754822401377,0.8444,4210.7,4210.6,0.47496]
[1754822401587,0.8391,4210.7,4210.6,2.01026]
[1754822401881,0.1684,4210.7,4210.6,2.01026]
[1754822402082,0.15722193,4211.4,4210.8,1.5353]
[1754822402287,0.8477,4211.4,4211.3,0.47488]
[1754822402484,1.1003,4211.4,4211.3,0.47488]
[1754822402881,0.8477,4211.4,4211.3,0.47488]
[1754822403086,0.8477,4211.4,4211.3,2.01018]
[1754822403087,0.8444,4211.4,4211.3,2.01018]
[1754822403286,0.1684,4211.4,4211.3,2.01018]
[1754822403586,1.1,4211.5,4211.4,1.5353]
[1754822403987,1.1,4211.5,4211.4,4.61699257]
[1754822404984,1.1,4211.5,4211.4,3.08169257]
[1754822405191,1.9391,4211.5,4211.4,4.61699257]
[1754822405386,1.9489,4211.5,4211.4,4.61699257]
[1754822406590,1.9451,4211.5,4211.4,4.61699257]
[1754822406788,1.9391,4211.5,4211.4,4.61699257]
[1754822406990,1.5212,4211.5,4211.4,4.61699257]
[1754822407290,1.1,4211.5,4211.4,4.61699257]
[1754822407782,1.9418,4211.5,4211.4,3.08169257]
[1754822407988,2.2103,4211.5,4211.4,3.08169257]
[1754822408183,0.6597,4211.4,4211.2,0.2586]
[1754822408382,0.838,4211.3,4211.1,0.2643]
[1754822408585,0.4506,4211.0,4210.9,0.47492]
[1754822408992,0.8418,4211.0,4210.9,2.03232]
[1754822409595,0.838,4211.0,4210.9,2.03232]
[1754822409987,0.832,4211.0,4210.9,2.03232]
[1754822410390,0.8358,4211.3,4211.2,1.11359]
[1754822410693,0.832,4211.3,4211.2,2.03229]
[1754822410888,0.8418,4211.3,4211.2,1.5574]
[1754822411088,1.1103,4211.3,4210.8,0.3958]
[1754822411396,0.4506,4211.0,4210.9,3.08134043]
[1754822411590,1.1103,4211.0,4210.9,3.08134043]
[1754822411791,1.1103,4211.0,4210.9,0.99782]
[1754822411991,1.1103,4211.0,4210.9,2.03232]
[1754822411992,0.8418,4211.0,4210.9,2.03232]
[1754822412491,0.2723,4210.9,4210.4,3.7307]
[1754822412698,0.2723,4210.9,4210.4,4.84438]
[1754822412699,0.8418,4210.5,4210.4,4.84438]
[1754822412903,1.1103,4210.5,4210.4,3.68278]
[1754822413410,0.4506,4210.5,4210.2,0.475]
[1754822413700,0.47493,4210.9,4210.2,0.9979]
[1754822414009,0.838,4210.5,4210.4,1.63658]
[1754822414305,0.838,4210.5,4210.4,2.03238]
[1754822414505,0.832,4210.5,4210.4,2.03238]
[1754822414805,0.832,4211.0,4210.9,2.03232]
[1754822415003,3.2078,4211.1,4210.9,2.03232]
[1754822415303,3.2078,4211.1,4211.0,1.5574]
[1754822415503,0.1746,4211.2,4211.1,2.0323]
[1754822415700,0.4544,4211.2,4210.5,0.5229]
[1754822415905,0.8418,4210.6,4210.5,0.99787]
[1754822416103,0.4506,4210.6,4210.3,0.47499]
[1754822416299,1.1103,4210.4,4210.3,0.47499]
[1754822416608,1.1103,4210.4,4210.3,0.99789]
[1754822417101,1.1104,4210.4,4210.3,0.47499]
[1754822418003,0.832,4210.4,4210.3,2.03239]
[1754822419408,0.8382,4210.4,4210.3,2.03239]
[1754822419706,0.8421,4210.4,4210.3,2.03239]
[1754822420510,1.1106,4210.4,4210.3,1.63659]
[1754822420803,1.1106,4210.4,4210.3,1.36559]
[1754822421005,1.1106,4210.4,4210.3,0.99789]
[1754822421199,0.47491,4211.1,4210.2,3.2078]
[1754822421200,1.1106,4210.3,4210.2,3.6828]
[1754822421407,1.1106,4210.3,4210.2,4.2057]
[1754822421609,1.1106,4210.3,4210.2,4.5734]
[1754822421800,1.1106,4210.3,4210.2,5.2402]
[1754822421801,0.8382,4210.3,4210.2,5.2402]
[1754822423001,0.832,4210.3,4210.2,5.2402]
[1754822423607,0.8382,4210.3,4210.2,5.2402]
[1754822423799,1.1106,4210.3,4210.2,3.6828]
[1754822424003,1.1106,4210.2,4210.1,0.47501]
[1754822424306,1.1106,4210.2,4210.1,1.36561]
[1754822425509,1.1106,4210.2,4210.1,1.63661]
[1754822425906,1.1106,4210.2,4210.1,1.36561]
[1754822426712,0.8382,4210.2,4210.1,2.03241]
[1754822427710,0.4446,4210.2,4210.1,2.03241]
[1754822428510,0.832,4210.2,4210.1,2.03241]
[1754822429409,0.8382,4210.2,4210.1,2.03241]
[1754822429608,0.8421,4210.2,4210.1,2.03241]
[1754822429802,0.8421,4210.2,4210.1,1.63661]
[1754822430003,1.1106,4210.2,4210.1,1.63661]
[1754822430502,1.1106,4210.2,4210.1,2.03241]
[1754822430902,1.1106,4210.2,4210.0,0.47502]
[1754822431109,1.1106,4210.0,4209.9,0.47503]
[1754822431404,0.4508,4209.6,4209.5,3.68288]
[1754822431708,0.8382,4209.6,4209.5,4.84448]
[1754822431914,0.832,4209.6,4209.5,5.24028]
[1754822432210,0.1746,4209.6,4209.5,5.24028]
[1754822432604,0.832,4209.6,4209.5,5.24028]
[1754822432911,0.1746,4209.9,4209.8,1.18875]
[1754822433098,0.3874,4210.1,4209.8,1.37235]
[1754822433297,0.3874,4210.1,4210.0,1.11372]
[1754822433500,0.3874,4210.1,4210.0,2.03242]
[1754822434004,3.4763,4210.5,4210.2,0.47499]
[1754822434208,0.1746,4210.3,4210.2,1.11369]
[1754822434410,0.4446,4210.3,4210.2,1.11369]
[1754822434613,0.832,4210.3,4210.2,1.11369]
[1754822434809,0.8382,4210.3,4210.2,2.03239]
[1754822435199,1.1106,4210.3,4210.2,1.63659]
[1754822435709,1.1106,4210.3,4210.2,1.1616]
[1754822435913,0.475,4210.2,4209.5,3.7162]
[1754822436210,1.1266,4209.6,4209.5,0.47508]
[1754822436408,1.1266,4209.4,4209.3,0.4751]
[1754822436910,1.1266,4209.4,4209.3,0.9835]
[1754822437303,1.1266,4209.4,4209.3,1.338]
[1754822437910,1.1266,4209.4,4209.3,0.8629]
[1754822438115,1.1266,4209.4,4208.6,23.99495]
[1754822438116,3.6361,4209.4,4208.9,0.3809]
[1754822438306,0.8378,4209.3,4209.2,1.0007]
[1754822438609,0.4283,4209.3,4209.2,1.98421]
[1754822438911,3.2078,4209.4,4209.2,1.09491]
[1754822439211,3.2078,4209.4,4209.3,1.5091]
[1754822439410,0.174,4209.5,4209.4,1.09489]
[1754822439611,0.5835,4209.5,4209.4,1.98419]
[1754822439914,0.8378,4209.8,4209.7,1.5091]
[1754822440115,0.8441,4209.8,4209.7,1.5091]
[1754822440409,0.8481,4209.8,4209.7,1.5091]
[1754822441408,1.1266,4209.8,4209.7,1.1282]
[1754822441614,1.1266,4209.8,4209.7,0.8629]
[1754822441811,1.1266,4209.8,4209.5,0.47508]
[1754822441812,1.60165,4209.8,4209.5,0.47508]
[1754822442110,1.1266,4209.6,4209.5,0.98348]
[1754822442306,1.1266,4209.6,4209.4,0.47509]
[1754822442513,1.1226,4209.4,4209.3,0.4751]
[1754822442706,1.1266,4209.4,4209.3,0.4751]
[1754822442906,0.4346,4209.2,4209.1,0.47512]
[1754822443109,1.1266,4209.2,4209.1,0.47512]
[1754822443509,0.8481,4209.2,4209.1,1.60332]
[1754822443707,3.2078,4209.9,4209.7,0.47505]
[1754822443906,4.0559,4209.9,4209.8,1.1282]
[1754822444406,4.0519,4209.9,4209.8,1.5091]
[1754822444810,4.0559,4209.9,4209.8,1.5091]
[1754822445416,4.0519,4209.9,4209.8,1.5091]
[1754822446514,4.0559,4209.9,4209.8,1.5091]
[1754822447612,4.0559,4209.9,4209.4,0.3809]
[1754822447816,0.8481,4209.2,4209.1,1.98423]
[1754822448315,0.8441,4209.2,4209.1,1.98423]
[1754822448711,0.2543,4209.2,4209.1,1.98423]
[1754822448913,0.8378,4209.6,4209.5,0.6198]
[1754822449414,0.8378,4209.6,4209.5,1.5091]
[1754822449813,0.8378,4209.8,4209.7,1.0712]
[1754822450013,0.8378,4209.8,4209.7,1.5091]
[1754822450409,0.8441,4209.8,4209.7,1.5091]
[1754822450812,0.8481,4209.8,4209.7,1.5091]
[1754822451514,0.4095,4209.8,4209.7,1.5091]
[1754822451715,0.8441,4210.4,4210.3,0.6198]
[1754822452118,0.8441,4210.4,4210.3,1.5091]
[1754822452119,0.8481,4210.4,4210.3,1.5091]
[1754822452518,0.174,4210.4,4210.3,1.5091]
[1754822452723,1.1266,4210.4,4210.3,0.6903]
[1754822453020,0.8481,4210.0,4209.9,1.60323]
[1754822453420,0.8481,4210.0,4209.9,1.98413]
[1754822453919,0.4346,4209.8,4209.7,0.98345]
[1754822454115,0.4346,4209.8,4209.7,0.5084]
[1754822454116,1.1266,4209.8,4209.7,0.5084]
[1754822454821,1.1266,4209.8,4209.7,0.8629]
[1754822455026,1.1266,4209.8,4209.7,1.1282]
[1754822455624,1.1266,4209.8,4209.7,1.5091]
[1754822455926,0.8441,4209.8,4209.7,1.5091]
[1754822456321,3.53959605,4210.0,4209.9,0.4379]
[1754822456519,3.53959605,4210.0,4209.9,1.5091]
[1754822456520,3.7913,4210.0,4209.9,1.5091]
[1754822456720,3.2078,4210.0,4209.9,1.5091]
[1754822457626,3.6424,4210.0,4209.9,1.5091]
[1754822457928,4.0559,4210.0,4209.9,1.5091]
[1754822458820,4.0519,4210.0,4209.9,1.5091]
[1754822459722,3.2078,4210.0,4209.9,1.5091]
[1754822461724,4.0519,4210.0,4209.9,1.5091]
[1754822462028,4.3344,4210.0,4209.9,1.1282]
[1754822463522,4.3344,4210.0,4209.9,1.60324]
[1754822463728,4.0559,4210.0,4209.9,1.60324]
[1754822463930,4.3344,4210.0,4209.9,1.60324]
[1754822464324,4.3344,4210.0,4209.9,1.1282]
[1754822464725,4.3344,4210.0,4209.9,1.5091]
[1754822465324,4.49219605,4210.0,4209.9,1.1282]
[1754822465531,4.80942,4210.0,4209.9,0.6903]
[1754822465731,0.825,4209.9,4209.8,1.10145]
[1754822466126,0.829,4209.9,4209.8,1.10145]
[1754822466326,1.56584,4209.9,4209.8,1.1659]
[1754822466725,1.56584,4209.9,4209.8,1.5823]
[1754822467532,0.829,4209.9,4209.8,1.5823]
[1754822467727,0.4369,4209.9,4209.8,1.5823]
[1754822467930,3.2078,4210.0,4209.9,1.10144]
[1754822468125,3.2078,4210.0,4209.9,2.05734]
[1754822471530,3.3812,4210.0,4209.9,2.05734]
[1754822471725,4.0264,4210.0,4209.9,2.05734]
[1754822472227,4.0328,4210.0,4209.9,2.05734]
[1754822472727,3.6447,4210.0,4209.9,2.05734]
[1754822472929,3.2078,4210.0,4209.9,2.05734]
[1754822473836,4.0368,4210.0,4209.9,1.5823]
[1754822474134,4.2986,4210.0,4209.9,1.5823]
[1754822474534,4.2986,4210.0,4209.9,2.05734]
[1754822474931,4.2986,4210.0,4208.4,25.70653499]
[1754822474932,0.825,4208.7,4208.6,2.12065906]
[1754822475130,1.0908,4208.7,4208.6,1.1659]
[1754822475435,0.825,4208.7,4208.6,1.5823]
[1754822477628,0.8186,4208.7,4208.6,1.5823]
[1754822479531,3.2078,4209.0,4208.7,0.47517]
[1754822479734,0.829,4209.4,4209.3,1.5823]
[1754822479931,1.0908,4209.4,4209.3,0.8964]
[1754822480129,1.0908,4209.4,4208.9,0.4164]
[1754822480130,1.0908,4209.4,4209.0,0.2627]
[1754822480334,0.4433,4209.2,4209.1,0.8964]
[1754822480529,1.0908,4209.2,4209.1,0.8964]
[1754822480837,1.0908,4209.2,4208.1,4.3959]
[1754822480838,0.829,4208.8,4208.7,1.10157]
[1754822481038,0.829,4208.8,4208.7,1.51797]
[1754822481340,0.825,4208.8,4208.7,2.05747]
[1754822481539,0.8186,4208.8,4208.7,2.05747]
[1754822483832,0.8186,4208.8,4208.7,1.5823]
[1754822485539,3.3812,4209.1,4209.0,1.5823]